lending/lending_fUSD_20251121
["ID","MTS","AMOUNT","RATE_DAILY","PERIOD"]
[394607591,1763752485423,151.0,0.00041908,50]
[394607592,1763752510228,154.14746,0.00041908,50]
[394607593,1763752517407,151.0,0.00041908,50]
[394607594,1763752519605,153.897816,0.00041908,50]
[394607595,1763752520722,151.0,0.00041908,50]
[394607596,1763752521046,166.657581,0.00041908,50]
[394607597,1763752524762,161.513378,0.00041908,50]
[394607598,1763752526895,151.0,0.00041908,50]
[394607599,1763752527281,151.0,0.00041908,50]
[394607600,1763752531720,154.045396,0.00041908,30]
[394607601,1763752539668,151.0,0.00041908,50]
[394607602,1763752539952,160.795237,0.00041908,50]
[394607603,1763752571002,151.0,0.00041908,50]
[394607604,1763752571307,151.0,0.00041908,50]
[394607605,1763752571665,151.0,0.00041908,50]
[394607606,1763752571951,151.0,0.00041908,50]
[394607607,1763752572315,151.0,0.00041908,50]
[394607608,1763752572621,297.86303,0.00041908,50]
[394607609,1763752579477,1000.0,0.00014631,2]
[394607610,1763752589092,151.0,0.00041908,50]
[394607611,1763752589614,151.0,0.00041908,50]
[394607612,1763752590501,151.0,0.00041908,50]
[394607613,1763752606762,151.0,0.00041908,50]
[394607614,1763752607120,151.0,0.00041908,50]
[394607615,1763752607417,151.0,0.00041908,50]
[394607616,1763752607791,155.775543,0.00041908,50]
[394607617,1763752629004,151.0,0.00041908,50]
[394607618,1763752629346,151.0,0.00041908,50]
[394607619,1763752629664,151.0,0.00041908,50]
[394607620,1763752650424,151.0,0.00041908,30]
[394607621,1763752650784,151.0,0.00041908,30]
[394607622,1763752651035,151.0,0.00041908,30]
[394607623,1763752651324,151.0,0.00041908,30]
[394607624,1763752651629,151.0,0.00041908,30]
[394607625,1763752651910,151.0,0.00041908,30]
[394607626,1763752652199,151.0,0.00041908,30]
[394607627,1763752652480,151.0,0.00041908,30]
[394607628,1763752652782,151.0,0.00041908,30]
[394607629,1763752653125,151.0,0.00041908,30]
[394607630,1763752653560,151.0,0.00041908,30]
[394607631,1763752653888,151.0,0.00041908,30]
[394607632,1763752654142,188.0,0.00041908,30]
[394607633,1763752654846,151.0,0.00041908,50]
[394607634,1763752675210,153.912815,0.00041908,50]
[394607635,1763752703152,151.0,0.00041908,50]
[394607636,1763752708831,151.0,0.00041908,50]
[394607637,1763752709227,152.427889,0.00041908,50]
[394607638,1763752710619,151.0,0.00041908,30]
[394607639,1763752710909,151.0,0.00041908,30]
[394607640,1763752711210,151.0,0.00041908,30]
[394607641,1763752711504,157.046347,0.00041908,30]
[394607642,1763752736951,151.0,0.00041904,50]
[394607643,1763752737249,151.922551,0.00041904,50]
[394607644,1763752741782,500.0,0.00041904,120]
[394607645,1763752760204,153.055746,0.00041904,50]
[394607646,1763752761089,151.0,0.00041904,50]
[394607647,1763752761675,162.886951,0.00041904,50]
[394607648,1763752775007,151.0,0.00041904,50]
[394607649,1763752896755,870.413,0.00014436,2]
[394607650,1763752896881,169.774,0.00014436,2]
[394607651,1763752940270,630.16,7.605e-05,2]
[394607652,1763752940515,630.16,8.005e-05,2]
[394607653,1763752940771,630.16,8.406e-05,2]
[394607654,1763752941058,630.16,8.806e-05,2]
[394607655,1763752941328,630.16,9.206e-05,2]
[394607656,1763752941530,630.16,9.606e-05,2]
[394607657,1763752941798,630.16,0.00010007,2]
[394607658,1763752942009,630.16,0.00010407,2]
[394607659,1763752942266,630.16,0.00010807,2]
[394607660,1763752943459,630.16,0.00011208,2]
[394607661,1763752943604,630.16,0.00011608,2]
[394607662,1763752943816,630.16,0.00012008,2]
[394607663,1763752943958,630.16,0.00012408,2]
[394607664,1763752944053,630.16,0.00012809,2]
[394607665,1763752944322,630.16,0.00013209,2]
[394607666,1763752944416,547.61,0.00013609,2]
[394607667,1763752944440,82.55,0.00013609,2]
[394607668,1763752944551,630.16,0.00014009,2]
[394607669,1763752944618,630.16,0.0001441,2]
[394607670,1763753023511,167.02,0.00011971,2]
[394607671,1763753178027,633.14,0.000209,30]
[394607672,1763753192675,5870.68170915,0.00019,14]
[394607673,1763753244408,434.6276315,0.00017,30]
[394607674,1763753272679,200.0,0.00014627,2]
[394607675,1763753275195,8290.12,0.00014631,2]
[394607676,1763753275220,10000.01,0.00014631,2]
[394607677,1763753275245,10000.01,0.00014631,2]
[394607678,1763753275269,10000.01,0.00014631,2]
[394607679,1763753275294,10000.01,0.00014631,2]
[394607680,1763753275321,10000.01,0.00014631,2]
[394607681,1763753275346,8353.7834,0.00014631,2]
[394607682,1763753326061,-195.0,0.00014702,2]
[394607683,1763753326081,-195.0,0.00014702,2]
[394607684,1763753326102,-250.0,0.00014702,2]
[394607685,1763753326123,-176.03673408,0.00014702,2]
[394607686,1763753326144,-617.37835211,0.00014705,2]
[394607687,1763753326164,-195.0,0.00014705,2]
[394607688,1763753326186,-153.94038962,0.0001471,2]
[394607689,1763753326206,-300.0,0.0001472,2]
[394607690,1763753326226,-300.0,0.00014721,2]
[394607691,1763753326246,-1200.0,0.00014721,2]
[394607692,1763753326265,-150.0,0.00014721,2]
[394607693,1763753326286,-1200.0,0.00014721,2]
[394607694,1763753326306,-151.0,0.00014722,2]
[394607695,1763753326326,-151.0,0.00014722,2]
[394607696,1763753326345,-151.0,0.00014722,2]
[394607697,1763753326366,-151.0,0.00014722,2]
[394607698,1763753326390,-151.0,0.00014722,2]
[394607699,1763753326411,-151.0,0.00014722,2]
[394607700,1763753326434,-151.0,0.00014722,2]
[394607701,1763753326454,-151.0,0.00014722,2]
[394607702,1763753326474,-151.0,0.00014722,2]
[394607703,1763753326494,-151.0,0.00014722,2]
[394607704,1763753326513,-151.0,0.00014722,2]
[394607705,1763753326533,-151.0,0.00014722,2]
[394607706,1763753326553,-151.0,0.00014722,2]
[394607707,1763753326573,-151.0,0.00014722,2]
[394607708,1763753326593,-151.0,0.00014722,2]
[394607709,1763753326614,-259.03096989,0.00014722,2]
[394607710,1763753326942,-256.0,0.0001473,2]
[394607711,1763753326971,-630.16,0.0001481,2]
[394607712,1763753326991,-500.0,0.0001483,2]
[394607713,1763753327011,-518.37547451,0.0001483,2]
[394607714,1763753327030,-150.0,0.00014858,2]
[394607715,1763753327050,-999.0,0.00014953,3]
[394607716,1763753327070,-256.0,0.00015004,2]
[394607717,1763753327090,-630.16,0.0001521,2]
[394607718,1763753327113,-256.01,0.00015278,2]
[394607719,1763753327133,-153.94038958,0.00015508,2]
[394607720,1763753327153,-255.0,0.0001584,2]
[394607721,1763753327174,-6531.54,0.00015915,2]
[394607722,1763753327194,-178.54,0.00015917,2]
[394607723,1763753327216,-1350.47,0.00015935,2]
[394607724,1763753327236,-1594.92,0.00015958,2]
[394607725,1763753327256,-381.0,0.00016115,2]
[394607726,1763753327276,-193.0,0.00016116,2]
[394607727,1763753327298,-1200.0,0.00016116,2]
[394607728,1763753327319,-250.0,0.00016172,2]
[394607729,1763753327338,-250.0,0.00016172,2]
[394607730,1763753327360,-195.0,0.00016172,2]
[394607731,1763753327382,-195.0,0.00016172,2]
[394607732,1763753327403,-769.0,0.00016193,2]
[394607733,1763753327426,-153.94038958,0.00016305,2]
[394607734,1763753327445,-6362.07,0.00016309,2]
[394607735,1763753327467,-2277.93,0.00016438,2]
[394607736,1763753327487,-150.0,0.00016849,2]
[394607737,1763753327506,-150.0,0.00016849,2]
[394607738,1763753327525,-150.0,0.00016849,2]
[394607739,1763753327546,-150.0,0.00016986,2]
[394607740,1763753327565,-150.0,0.00016986,2]
[394607741,1763753327584,-250.0,0.00017,2]
[394607742,1763753329169,151.0,0.00016914,2]
[394607743,1763753354680,-209.28124065,0.0001702,2]
[394607744,1763753362051,-300.0,0.00017034,2]
[394607745,1763753362070,-195.0,0.00017034,2]
[394607746,1763753362089,-433.0,0.00017047,2]
[394607747,1763753362109,-300.0,0.0001711,2]
[394607748,1763753362129,-195.0,0.0001711,2]
[394607749,1763753362150,-150.0,0.00017123,2]
[394607750,1763753362171,-200.0,0.00017123,2]
[394607751,1763753362191,-150.0,0.0001726,2]
[394607752,1763753362212,-150.0,0.00017397,2]
[394607753,1763753362232,-166.66,0.00017423,2]
[394607754,1763753362252,-426.56612961,0.00017473,2]
[394607755,1763753362271,-250.0,0.00017534,2]
[394607756,1763753362291,-453.365,0.00017548,2]
[394607757,1763753362311,-1000.0,0.00017548,2]
[394607758,1763753362330,-1000.0,0.00017548,2]
[394607759,1763753362349,-1000.0,0.0001755,2]
[394607760,1763753362369,-792.0,0.00017623,2]
[394607761,1763753362397,-607.0,0.000177,2]
[394607762,1763753362416,-300.0,0.00017769,2]
[394607763,1763753362440,-150.0,0.00017808,2]
[394607764,1763753362462,-3510.89206,0.0001782,2]
[394607765,1763753362482,-3510.89206,0.0001782,2]
[394607766,1763753362501,-3510.89207,0.0001782,2]
[394607767,1763753362520,-3510.89207,0.0001782,2]
[394607768,1763753362540,-1345.11667037,0.0001782,2]
[394607783,1763753431530,-347.43508066,0.00017856,2]
[394607784,1763753431542,-152.56491934,0.00017856,2]
[394607785,1763753431552,-282.06271216,0.00017856,2]
[394607786,1763753431562,-49.93728784,0.00017856,2]
[394607787,1763753431571,-195.0,0.00017878,2]
[394607788,1763753431580,-157.96589854,0.000179,2]
[394607789,1763753431588,-83.96784362,0.000179,2]
[394607790,1763753431599,-76.6895203,0.000179,2]
[394607791,1763753431609,-307.88077916,0.000179,2]
[394607792,1763753431618,-195.0,0.00017919,2]
[394607793,1763753431628,-1074.2749927,0.0001794,2]
[394607794,1763753431643,-150.0,0.00017945,2]
[394607795,1763753431652,-167.02,0.00017956,2]
[394607796,1763753431660,-365.08659521,0.00017973,2]
[394607797,1763753431669,-300.0,0.00017998,2]
[394607798,1763753431679,-166.66,0.00017998,2]
[394607799,1763753431690,-500.0,0.00017999,2]
[394607800,1763753431700,-250.5400429,0.00017999,2]
[394607801,1763753431711,-156.35894633,0.00017999,2]
[394607802,1763753431722,-374.20464269,0.00017999,2]
[394607803,1763753431733,-500.0,0.00017999,2]
[394607804,1763753431743,-500.0,0.00017999,2]
[394607805,1763753431753,-500.0,0.00017999,2]
[394607806,1763753431763,-500.0,0.00017999,2]
[394607807,1763753431775,-406.21441202,0.00017999,2]
[394607808,1763753431785,-500.0,0.00017999,2]
[394607809,1763753431795,-500.0,0.00017999,2]
[394607810,1763753431805,-500.0,0.00017999,2]
[394607811,1763753431816,-500.0,0.00017999,2]
[394607812,1763753431826,-500.0,0.00017999,2]
[394607813,1763753431836,-500.0,0.00017999,2]
[394607814,1763753431846,-500.0,0.00017999,2]
[394607815,1763753431857,-503.92598697,0.00017999,2]
[394607816,1763753431867,-500.0,0.00017999,2]
[394607817,1763753431878,-500.0,0.00017999,2]
[394607818,1763753431887,-500.0,0.00017999,2]
[394607819,1763753431898,-500.0,0.00017999,2]
[394607820,1763753431908,-365.30600093,0.00017999,2]
[394607821,1763753431919,-500.0,0.00017999,2]
[394607822,1763753431930,-500.0,0.00017999,2]
[394607823,1763753431941,-500.0,0.00017999,2]
[394607824,1763753431953,-500.0,0.00017999,2]
[394607825,1763753431963,-254.13019239,0.00017999,2]
[394607857,1763753432909,-245.86980761,0.00017999,2]
[394607858,1763753432920,-500.0,0.00017999,2]
[394607859,1763753432931,-500.0,0.00017999,2]
[394607860,1763753432942,-500.0,0.00017999,2]
[394607861,1763753432954,-500.0,0.00017999,2]
[394607862,1763753432964,-135.44019239,0.00017999,2]
[394607863,1763753432977,-364.55980761,0.00017999,2]
[394607864,1763753432987,-64.44019253,0.00017999,2]
[394607865,1763753433000,-435.55980747,0.00017999,2]
[394607866,1763753433012,-229.08606253,0.00017999,2]
[394607867,1763753433047,-270.91393747,0.00017999,2]
[394607868,1763753433057,-297.72375316,0.00017999,2]
[394607869,1763753433071,-202.27624684,0.00017999,2]
[394607870,1763753433081,-500.0,0.00017999,2]
[394607871,1763753433093,-285.17172806,0.00017999,2]
[394607872,1763753433105,-214.82827194,0.00017999,2]
[394607873,1763753433115,-608.75849124,0.00017999,2]
[394607874,1763753433127,-500.0,0.00017999,2]
[394607875,1763753433138,-500.0,0.00017999,2]
[394607876,1763753433149,-647.83006411,0.00017999,2]
[394607877,1763753433160,-500.0,0.00017999,2]
[394607878,1763753433171,-263.14475137,0.00017999,2]
[394607879,1763753433182,-500.0,0.00017999,2]
[394607880,1763753433193,-500.0,0.00017999,2]
[394607881,1763753433205,-500.0,0.00017999,2]
[394607882,1763753433216,-500.0,0.00017999,2]
[394607883,1763753433226,-344.28976458,0.00017999,2]
[394607884,1763753433249,-155.71023542,0.00017999,2]
[394607885,1763753433260,-500.0,0.00017999,2]
[394607886,1763753433271,-500.0,0.00017999,2]
[394607887,1763753433281,-500.0,0.00017999,2]
[394607888,1763753433291,-500.0,0.00017999,2]
[394607889,1763753433306,-500.0,0.00017999,2]
[394607890,1763753433317,-307.4198135,0.00017999,2]
[394607891,1763753433329,-500.0,0.00017999,2]
[394607892,1763753433340,-3720.0,0.00018,2]
[394607893,1763753433351,-3073.09755684,0.00018,2]
[394607894,1763753433387,-95474.60549715,0.00018,2]
[394607895,1763753433401,-1427.00894998,0.00018,2]
[394607896,1763753433416,-298.45475,0.00018,2]
[394607897,1763753433429,-5373.43650221,0.00018,2]
[394607898,1763753433442,-270.69232887,0.00018,2]
[394607901,1763753437391,-353.43393972,0.00018,2]
[394607902,1763753437448,-107323.87063052,0.00018,2]
[394607903,1763753437507,-308.81,0.00018,2]
[394607904,1763753437560,-1154.39821688,0.00018,2]
[394608010,1763753439498,-5053.5,0.00018,2]
[394608011,1763753439872,-1277.25434498,0.00018,2]
[394608012,1763753439883,-1794.08677642,0.00018,2]
[394608013,1763753439894,-10145.0965225,0.00018,2]
[394608014,1763753445651,-1240.0779603,0.00017899,2]
[394608015,1763753445662,-290.33096439,0.00017899,2]
[394608016,1763753445673,-3700.22272031,0.00017899,2]
[394608017,1763753445710,-338.81,0.00017899,2]
[394608018,1763753446130,-1915.9486666,0.00017899,2]
[394608019,1763753446170,-1483.74250596,0.00017899,2]
[394608020,1763753446181,-730.01830775,0.00017899,2]
[394608021,1763753446300,-1505.6281414,0.00017899,2]
[394608022,1763753446311,-339.62023246,0.00017899,2]
[394608027,1763754631594,-195.0,0.00015015,2]
[394608029,1763754631604,-578.20924308,0.00015147,2]
[394608030,1763754631614,-195.0,0.00015791,2]
[394608031,1763754631624,-195.0,0.00016313,2]
[394608032,1763754631633,-195.0,0.00016313,2]
[394608033,1763754631643,-250.0,0.00016313,2]
[394608034,1763754631653,-195.0,0.00016313,2]
[394608035,1763754631662,-300.0,0.00016517,2]
[394608036,1763754631672,-151.0,0.00016607,2]
[394608037,1763754631682,-151.0,0.00016607,2]
[394608038,1763754631691,-151.0,0.00016706,2]
[394608039,1763754631701,-1600.0,0.00016761,2]
[394608040,1763754631714,-1000.0,0.00016822,2]
[394608041,1763754631724,-250.0,0.00017,2]
[394608042,1763754631737,-200.0,0.00017066,2]
[394608043,1763754631747,-1200.0,0.00017091,2]
[394608044,1763754631756,-550.0,0.00017091,2]
[394608045,1763754631766,-1362.33758212,0.00017092,2]
[394608046,1763754631776,-322.6107,0.00017092,2]
[394608047,1763754631786,-186.25665253,0.00017092,2]
[394608048,1763754631802,-151.0,0.00017092,2]
[394608049,1763754631812,-250.0,0.00017092,2]
[394608050,1763754631823,-721.12765535,0.00017092,2]
[394608051,1763754631833,-250.0,0.00017092,2]
[394608052,1763754631845,-250.0,0.00017092,2]
[394608053,1763754631855,-250.0,0.00017092,2]
[394608055,1763754631865,-250.0,0.00017092,2]
[394608057,1763754631877,-250.0,0.00017092,2]
[394608058,1763754631887,-250.0,0.00017092,2]
[394608059,1763754631898,-250.0,0.00017092,2]
[394608060,1763754631907,-250.0,0.00017092,2]
[394608061,1763754631917,-250.0,0.00017092,2]
[394608062,1763754631927,-250.0,0.00017092,2]
[394608063,1763754631937,-250.0,0.00017092,2]
[394608064,1763754631946,-250.0,0.00017092,2]
[394608065,1763754631956,-250.0,0.00017092,2]
[394608066,1763754631965,-250.0,0.00017092,2]
[394608067,1763754631975,-250.0,0.00017092,2]
[394608068,1763754631987,-274.50469628,0.00017092,2]
[394608069,1763754631997,-250.0,0.00017092,2]
[394608070,1763754632007,-250.0,0.00017092,2]
[394608071,1763754632017,-250.0,0.00017092,2]
[394608072,1763754632027,-500.0,0.00017092,2]
[394608073,1763754632036,-250.0,0.00017092,2]
[394608074,1763754632046,-500.0,0.00017092,2]
[394608075,1763754632056,-250.0,0.00017092,2]
[394608076,1763754632067,-500.0,0.00017092,2]
[394608077,1763754632077,-250.0,0.00017092,2]
[394608078,1763754632087,-250.0,0.00017092,2]
[394608079,1763754632097,-500.0,0.00017092,2]
[394608080,1763754632107,-250.0,0.00017092,2]
[394608081,1763754632116,-250.0,0.00017092,2]
[394608082,1763754632126,-500.0,0.00017092,2]
[394608083,1763754632136,-500.0,0.00017092,2]
[394608084,1763754632146,-250.0,0.00017092,2]
[394608085,1763754632156,-250.0,0.00017092,2]
[394608086,1763754632166,-500.0,0.00017092,2]
[394608087,1763754632176,-500.0,0.00017092,2]
[394608088,1763754632187,-250.0,0.00017092,2]
[394608089,1763754632198,-250.0,0.00017092,2]
[394608090,1763754632210,-500.0,0.00017092,2]
[394608091,1763754632220,-500.0,0.00017092,2]
[394608092,1763754632231,-250.0,0.00017092,2]
[394608093,1763754632241,-250.0,0.00017092,2]
[394608094,1763754632251,-500.0,0.00017092,2]
[394608095,1763754632260,-500.0,0.00017092,2]
[394608096,1763754632270,-250.0,0.00017092,2]
[394608097,1763754632280,-250.0,0.00017092,2]
[394608098,1763754632290,-500.0,0.00017092,2]
[394608099,1763754632299,-500.0,0.00017092,2]
[394608100,1763754632309,-250.0,0.00017092,2]
[394608101,1763754632318,-250.0,0.00017092,2]
[394608102,1763754632328,-500.0,0.00017092,2]
[394608103,1763754632338,-165.10430947,0.00017092,2]
[394608104,1763754632354,-334.89569053,0.00017092,2]
[394608105,1763754632364,-250.0,0.00017092,2]
[394608106,1763754632374,-250.0,0.00017092,2]
[394608107,1763754632383,-151.0,0.00017092,2]
[394608108,1763754632393,-500.0,0.00017092,2]
[394608109,1763754632403,-500.0,0.00017092,2]
[394608110,1763754632415,-250.0,0.00017092,2]
[394608111,1763754632425,-250.0,0.00017092,2]
[394608112,1763754632435,-151.0,0.00017092,2]
[394608113,1763754632445,-286.72685649,0.00017092,2]
[394608114,1763754632456,-324.57463654,0.00017092,2]
[394608115,1763754632497,-249.55391983,0.00017092,2]
[394608116,1763754632506,-250.0,0.00017092,2]
[394608117,1763754632517,-151.0,0.00017092,2]
[394608118,1763754632527,-500.0,0.00017092,2]
[394608119,1763754632536,-250.0,0.00017092,2]
[394608120,1763754632546,-151.0,0.00017092,2]
[394608121,1763754632555,-500.0,0.00017092,2]
[394608122,1763754632565,-500.0,0.00017092,2]
[394608123,1763754632575,-110.49013442,0.00017092,2]
[394608124,1763754632587,-40.50986558,0.00017092,2]
[394608125,1763754632596,-500.0,0.00017092,2]
[394608126,1763754632605,-482.8096727,0.00017092,2]
[394608146,1763754637973,-151.0,0.00016706,2]
[394608147,1763754637985,-17.1903273,0.00017092,2]
[394608148,1763754637996,-151.0,0.00017092,2]
[394608149,1763754638006,-500.0,0.00017092,2]
[394608150,1763754638017,-250.0,0.00017092,2]
[394608151,1763754638027,-151.0,0.00017092,2]
[394608152,1763754638039,-500.0,0.00017092,2]
[394608153,1763754638050,-250.0,0.00017092,2]
[394608154,1763754638062,-151.0,0.00017092,2]
[394608155,1763754638073,-500.0,0.00017092,2]
[394608156,1763754638085,-200.0,0.00017092,2]
[394608157,1763754638097,-250.0,0.00017092,2]
[394608158,1763754638108,-151.0,0.00017092,2]
[394608159,1763754638118,-500.0,0.00017092,2]
[394608160,1763754638128,-250.0,0.00017092,2]
[394608161,1763754638139,-151.0,0.00017092,2]
[394608162,1763754638150,-500.0,0.00017092,2]
[394608163,1763754638161,-250.0,0.00017092,2]
[394608164,1763754638173,-248.51363122,0.00017092,2]
[394608165,1763754638184,-250.0,0.00017092,2]
[394608166,1763754638196,-500.0,0.00017092,2]
[394608167,1763754638207,-250.0,0.00017092,2]
[394608168,1763754638218,-500.0,0.00017092,2]
[394608169,1763754638229,-250.0,0.00017092,2]
[394608170,1763754638244,-500.0,0.00017092,2]
[394608171,1763754638256,-250.0,0.00017092,2]
[394608172,1763754638267,-500.0,0.00017092,2]
[394608173,1763754638278,-200.0,0.00017092,2]
[394608174,1763754638290,-500.0,0.00017092,2]
[394608175,1763754638302,-250.0,0.00017092,2]
[394608177,1763754638313,-353.6887653,0.00017092,2]
[394608179,1763754638326,-146.3112347,0.00017092,2]
[394608181,1763754638337,-500.0,0.00017092,2]
[394608182,1763754638348,-250.0,0.00017092,2]
[394608183,1763754638360,-500.0,0.00017092,2]
[394608184,1763754638371,-500.0,0.00017092,2]
[394608186,1763754638382,-500.0,0.00017092,2]
[394608187,1763754638393,-500.0,0.00017092,2]
[394608188,1763754638406,-34.0887653,0.00017092,2]
[394608195,1763754638477,-465.9112347,0.00017092,2]
[394608197,1763754638491,-199.07035695,0.00017092,2]
[394608198,1763754638502,-298.09841172,0.00017092,2]
[394608200,1763754638520,-201.90158828,0.00017092,2]
[394608201,1763754638532,-500.0,0.00017092,2]
[394608202,1763754638542,-500.0,0.00017092,2]
[394608203,1763754638554,-500.0,0.00017092,2]
[394608204,1763754638565,-115.38784456,0.00017092,2]
[394608205,1763754638585,-384.61215544,0.00017092,2]
[394608206,1763754638597,-295.87236134,0.00017092,2]
[394608210,1763754639680,-204.12763866,0.00017092,2]
[394608211,1763754639690,-75.45546134,0.00017092,2]
[394608212,1763754639737,-544.54453866,0.00017092,2]
[394608213,1763754639746,-500.0,0.00017092,2]
[394608214,1763754639755,-500.0,0.00017092,2]
[394608215,1763754639764,-500.0,0.00017092,2]
[394608216,1763754639773,-19.3925892,0.00017092,2]
[394608217,1763754639785,-373.5644,0.00017092,2]
[394608218,1763754639806,-107.0430108,0.00017092,2]
[394608219,1763754639815,-288.4289892,0.00017092,2]
[394608220,1763754639827,-211.5710108,0.00017092,2]
[394608221,1763754639837,-500.0,0.00017092,2]
[394608222,1763754639849,-500.0,0.00017092,2]
[394608223,1763754639859,-500.0,0.00017092,2]
[394608224,1763754639868,-500.0,0.00017092,2]
[394608225,1763754639877,-500.0,0.00017092,2]
[394608226,1763754639887,-500.0,0.00017092,2]
[394608227,1763754639899,-200.0,0.00017092,2]
[394608228,1763754639909,-500.0,0.00017092,2]
[394608229,1763754639919,-500.0,0.00017092,2]
[394608230,1763754639930,-61.35237242,0.00017092,2]
[394608231,1763754639943,-438.64762758,0.00017092,2]
[394608232,1763754639952,-500.0,0.00017092,2]
[394608233,1763754639961,-500.0,0.00017092,2]
[394608234,1763754639971,-500.0,0.00017092,2]
[394608235,1763754639980,-500.0,0.00017092,2]
[394608236,1763754639991,-500.0,0.00017092,2]
[394608237,1763754640000,-500.0,0.00017092,2]
[394608238,1763754640010,-500.0,0.00017092,2]
[394608239,1763754640020,-500.0,0.00017092,2]
[394608240,1763754640029,-500.0,0.00017092,2]
[394608241,1763754640039,-500.0,0.00017092,2]
[394608242,1763754640049,-524.03564673,0.00017092,2]
[394608243,1763754640059,-500.0,0.00017092,2]
[394608244,1763754640069,-500.0,0.00017092,2]
[394608245,1763754640079,-500.0,0.00017092,2]
[394608246,1763754640089,-500.0,0.00017092,2]
[394608247,1763754640099,-500.0,0.00017092,2]
[394608248,1763754640108,-500.0,0.00017092,2]
[394608249,1763754640118,-500.0,0.00017092,2]
[394608251,1763754640127,-500.0,0.00017092,2]
[394608253,1763754640137,-500.0,0.00017092,2]
[394608255,1763754640146,-500.0,0.00017092,2]
[394608257,1763754640155,-500.0,0.00017092,2]
[394608259,1763754640164,-500.0,0.00017092,2]
[394608261,1763754640174,-500.0,0.00017092,2]
[394608263,1763754640183,-500.0,0.00017092,2]
[394608265,1763754640194,-500.0,0.00017092,2]
[394608267,1763754640203,-277.35679052,0.00017092,2]
[394608269,1763754640212,-2751.0,0.00017102,2]
[394608271,1763754640221,-472.0,0.00017472,2]
[394608273,1763754640231,-426.56612961,0.00017474,2]
[394608275,1763754640241,-472.0,0.00017506,2]
[394608277,1763754640251,-472.0,0.00017588,2]
[394608279,1763754640260,-472.0,0.00017601,2]
[394608281,1763754640270,-472.0,0.0001762,2]
[394608283,1763754640279,-151.0,0.0001764,2]
[394608285,1763754640288,-595.37131296,0.0001764,2]
[394608287,1763754640297,-200.0,0.0001764,2]
[394608289,1763754640306,-642.94,0.0001764,2]
[394608291,1763754640316,-200.0,0.0001764,2]
[394608293,1763754640325,-500.0,0.0001764,2]
[394608296,1763754640335,-472.0,0.00017644,2]
[394608297,1763754640344,-472.0,0.0001768,2]
[394608299,1763754640353,-166.34858789,0.00017697,2]
[394608301,1763754640362,-166.34858789,0.00017748,2]
[394608303,1763754640371,-472.0,0.00017757,2]
[394608305,1763754640381,-301.70066677,0.00017787,2]
[394608307,1763754640390,-413.57716391,0.00017787,2]
[394608309,1763754640399,-500.0,0.00017787,2]
[394608311,1763754640408,-500.0,0.00017787,2]
[394608313,1763754640417,-500.0,0.00017787,2]
[394608315,1763754640426,-500.0,0.00017787,2]
[394608317,1763754640436,-295.07697718,0.00017787,2]